bitfinex-derivatives/quotes_SOLF0:USTF0_20260203
["timestamp","ask_amount","ask_price","bid_price","bid_amount"]
[1770115345144,2.42809708,102.66,102.62,8.7774]
[1770115345349,2.42809708,102.64,102.59,16.12337072]
[1770115346454,2.42809708,102.64,102.6,24.90267072]
[1770115347255,2.42809708,102.64,102.6,16.12337072]
[1770115348847,25.44867914,102.66,102.6,16.12337072]
[1770115349045,2.42809708,102.65,102.6,16.12337072]
[1770115349255,25.44867914,102.66,102.6,16.12337072]
[1770115349456,2.42809708,102.65,102.6,16.12337072]
[1770115350252,407.6631,102.68,102.61,16.12337072]
[1770115350253,8.7734,102.67,102.61,16.12337072]
[1770115350457,2.42809708,102.67,102.62,16.12337072]
[1770115351556,2.42809708,102.67,102.63,16.12337072]
[1770115353054,25.44657914,102.69,102.63,16.12337072]
[1770115353254,2.42809708,102.68,102.63,16.12337072]
[1770115354656,19.10257622,102.68,102.63,16.12337072]
[1770115355260,27.87517622,102.68,102.63,16.12337072]
[1770115355854,25.44707914,102.68,102.63,16.12337072]
[1770115356060,11.20069708,102.68,102.63,16.12337072]
[1770115357458,2.42809708,102.68,102.63,16.12337072]
[1770115357650,2.42809708,102.68,102.64,16.12337072]
[1770115357855,11.19959708,102.7,102.64,16.12337072]
[1770115360463,2.42897801,102.69,102.64,16.12337072]
[1770115360762,11.20067801,102.69,102.64,16.12337072]
[1770115364863,11.20067801,102.69,102.65,16.12337072]
[1770115365658,541.61997914,102.73,102.65,24.89837072]
[1770115365963,2.42897801,102.72,102.66,5.37004182]
[1770115366262,19.10345715,102.72,102.66,5.37004182]
[1770115367162,19.10345715,102.7,102.66,5.37004182]
[1770115368254,8.7718,102.69,102.64,5.53203906]
[1770115369664,8.773,102.68,102.64,5.53203906]
[1770115370660,11.20197801,102.68,102.64,5.53203906]
[1770115370964,28.00746918,102.68,102.64,5.53203906]
[1770115371160,2.42897801,102.68,102.64,5.53203906]
[1770115371665,11.20147801,102.68,102.64,5.53203906]
[1770115374267,28.71824507,102.68,102.64,5.53203906]
[1770115375367,11.20147801,102.68,102.64,5.53203906]
[1770115376368,28.71824507,102.68,102.62,6.10475013]
[1770115376769,8.7734,102.67,102.62,6.10475013]
[1770115377066,2.42897801,102.66,102.62,6.10475013]
[1770115377469,28.72074507,102.66,102.59,8.7801]
[1770115377768,19.94574507,102.66,102.59,8.7801]
[1770115378671,8.7753,102.65,102.59,8.7801]
[1770115379372,8.7753,102.65,102.6,0.06444069]
[1770115380968,8.7743,102.66,102.61,0.19825265]
[1770115381970,8.7735,102.67,102.62,0.25848545]
[1770115382170,17.94065795,102.66,102.62,0.25848545]
[1770115382366,8.7752,102.65,102.58,304.12935256]
[1770115382572,11.20417801,102.65,102.59,0.25848545]
[1770115383268,11.20417801,102.65,102.6,0.65622042]
[1770115383474,2.42897801,102.63,102.59,0.65622042]
[1770115383965,11.20597801,102.63,102.59,0.65622042]
[1770115386782,8.777,102.63,102.59,0.65622042]
[1770115386980,17.77098268,102.64,102.59,0.65622042]
[1770115387677,11.20487801,102.65,102.59,0.65622042]
[1770115387973,29.10606945,102.65,102.59,0.65622042]
[1770115390288,26.63444564,102.64,102.59,0.65622042]
[1770115390489,17.85834564,102.63,102.59,0.65622042]
[1770115391785,29.06432365,102.63,102.58,18.53441188]
[1770115392489,29.06432365,102.63,102.58,19.41134079]
[1770115393391,27.29893798,102.62,102.55,261.98]
[1770115394184,27.29893798,102.62,102.54,139.06597801]
[1770115394390,27.29893798,102.62,102.56,8.7826]
[1770115394890,18.52103798,102.62,102.57,8.7818]
[1770115395592,18.52103798,102.62,102.57,18.51172531]
[1770115396593,2.42897801,102.63,102.57,18.51172531]
[1770115396788,20.98176846,102.63,102.57,18.51172531]
[1770115398894,20.98176846,102.63,102.58,0.07275129]
[1770115399194,29.75886846,102.63,102.58,0.07275129]
[1770115399395,18.49372682,102.62,102.57,18.5844766]
[1770115399695,18.49372682,102.62,102.57,9.8026766]
[1770115399890,20.92326971,102.61,102.57,9.8026766]
[1770115400086,20.92326971,102.61,102.55,8.9027873]
[1770115400394,20.92326971,102.61,102.55,0.1198873]
[1770115401397,27.36432018,102.6,102.55,0.1198873]
[1770115402791,18.58492018,102.6,102.55,8.9033873]
[1770115404495,2.42897801,102.61,102.56,10.38440204]
[1770115405302,21.01389819,102.61,102.56,10.38440204]
[1770115409199,21.01389819,102.61,102.57,8.7818]
[1770115409499,18.58492018,102.62,102.57,10.75901757]
[1770115410006,27.36262018,102.62,102.57,10.75901757]
[1770115411699,27.36262018,102.62,102.57,1.97721757]
[1770115412505,18.58492018,102.62,102.57,1.97721757]
[1770115413402,18.58492018,102.6,102.55,11.88421805]
[1770115414403,27.36442018,102.6,102.55,20.66761805]
[1770115415610,27.36442018,102.6,102.55,11.88421805]
[1770115416110,18.58492018,102.59,102.55,11.88421805]
[1770115418711,27.36512018,102.59,102.55,11.88421805]
[1770115419113,27.36512018,102.59,102.55,9.67136992]
[1770115419308,27.36512018,102.59,102.54,8.7842]
[1770115419515,27.36512018,102.59,102.54,11.27689902]
[1770115422414,27.36512018,102.59,102.54,21.13359942]
[1770115423811,18.58492018,102.59,102.54,21.13359942]
[1770115424511,27.36522018,102.59,102.54,21.13359942]
[1770115425817,27.36522018,102.59,102.54,12.34939942]
[1770115426020,18.58492018,102.58,102.54,12.34939942]
[1770115428115,27.36522018,102.59,102.54,12.34939942]
[1770115430523,18.58492018,102.59,102.55,3.97188346]
[1770115431123,27.36522018,102.59,102.54,9.8567004]
[1770115431420,27.36522018,102.59,102.54,4.11364699]
[1770115435626,27.36522018,102.59,102.54,13.96839576]
[1770115437424,17.88031223,102.56,102.52,289.44958363]
[1770115437625,17.88031223,102.56,102.5,7.07351487]
[1770115439329,26.66341223,102.56,102.5,15.86131487]
[1770115440130,26.66341223,102.56,102.5,18.29440666]
[1770115440626,136.5694,102.6,102.52,6.76848751]
[1770115440627,17.88031223,102.58,102.52,6.76848751]
[1770115440932,17.88031223,102.61,102.55,7.58540532]
[1770115441430,17.88031223,102.6,102.55,7.58540532]
[1770115442131,26.65801223,102.62,102.56,10.05105321]
[1770115442629,26.65801223,102.62,102.57,7.61796142]
[1770115443432,26.65901223,102.61,102.55,275.12986909]
[1770115443627,26.65901223,102.61,102.55,10.36296088]
[1770115445125,26.65731223,102.63,102.56,7.77431235]
[1770115445425,17.88031223,102.63,102.57,10.20740414]
[1770115445630,17.88031223,102.63,102.58,7.77431235]
[1770115445830,17.88031223,102.63,102.58,275.77431235]
[1770115446731,17.88031223,102.63,102.58,284.55521235]
[1770115447335,17.88031223,102.65,102.6,7.90224274]
[1770115449438,17.88031223,102.65,102.6,16.68154274]
[1770115457843,17.88031223,102.65,102.61,8.7785]
[1770115463645,17.88031223,102.65,102.62,8.7776]
[1770115467645,2.43309179,102.68,102.63,8.7767]
[1770115469646,18.00183624,102.67,102.63,8.7767]
[1770115469849,18.00183624,102.67,102.62,8.7774]
[1770115472751,18.00183624,102.67,102.63,8.7767]
[1770115473252,18.00183624,102.67,102.62,8.7774]
[1770115473656,18.00183624,102.67,102.61,296.6669283]
[1770115475150,18.00183624,102.67,102.61,305.4447283]
[1770115476753,18.00183624,102.67,102.62,26.6444283]
[1770115478150,18.00183624,102.67,102.63,17.8669283]
[1770115481854,18.00183624,102.67,102.63,26.6434283]
[1770115482348,18.00183624,102.69,102.63,17.8669283]
[1770115482552,18.00183624,102.69,102.64,17.8669283]
[1770115483156,2.43309179,102.7,102.65,26.6417283]
[1770115483357,18.00183624,102.71,102.65,26.6417283]
[1770115485758,18.00183624,102.71,102.66,8.7741]
[1770115486556,18.00183624,102.69,102.65,8.7749]
[1770115487860,18.00183624,102.69,102.66,8.7741]
[1770115488757,18.00183624,102.69,102.63,440.5333283]
[1770115488961,18.00183624,102.69,102.63,304.0069283]
[1770115490456,18.00183624,102.69,102.63,306.6469283]
[1770115491463,18.00183624,102.69,102.65,8.775]
[1770115495765,18.00183624,102.69,102.63,306.6469283]
[1770115501970,18.48843519,102.68,102.63,306.6469283]
[1770115505671,18.48843519,102.68,102.61,19.86868172]
[1770115505972,20.91598374,102.68,102.61,19.86868172]
[1770115507269,8.774,102.67,102.61,19.86868172]
[1770115507475,18.48843519,102.66,102.61,19.86868172]
[1770115510975,8.774,102.67,102.62,19.86868172]
[1770115513772,27.26243519,102.67,102.62,19.86868172]
[1770115517782,18.48843519,102.67,102.62,19.86868172]
[1770115521986,19.17563829,102.66,102.62,19.86868172]
[1770115524888,21.60318684,102.68,102.62,19.86868172]
[1770115528494,30.37578684,102.68,102.62,19.86868172]
[1770115532994,19.17563829,102.67,102.62,19.86868172]
[1770115533491,27.94903829,102.67,102.62,19.86868172]
[1770115533692,19.17563829,102.67,102.62,19.86868172]
[1770115536696,19.17563829,102.67,102.62,28.64618172]
[1770115538400,19.17563829,102.67,102.63,19.91288284]
[1770115540696,19.17563829,102.69,102.64,19.91288284]
[1770115542300,19.17563829,102.69,102.64,28.68858284]
[1770115554699,19.17563829,102.69,102.65,8.775]
[1770115555908,19.17563829,102.69,102.64,19.91288284]
[1770115556810,20.48670985,102.71,102.64,22.34126321]
[1770115557102,20.48670985,102.69,102.64,19.91288284]
[1770115558107,2.42838037,102.7,102.64,19.91288284]
[1770115558306,20.48670985,102.7,102.65,14.30082588]
[1770115558807,22.91509022,102.72,102.66,14.30082588]
[1770115559502,22.91509022,102.7,102.66,14.30082588]
[1770115560103,22.91509022,102.7,102.65,303.9]
[1770115560309,22.91509022,102.7,102.64,14.22606933]
[1770115561012,22.91509022,102.7,102.65,14.23958699]
[1770115561504,20.48670985,102.7,102.65,14.23958699]
[1770115561713,20.48670985,102.7,102.66,14.23958699]
[1770115562817,22.91509022,102.72,102.66,14.23958699]
[1770115564119,20.48670985,102.71,102.64,26.59582768]
[1770115564514,20.48670985,102.71,102.65,15.39164731]
[1770115564715,22.91509022,102.7,102.65,15.39164731]
[1770115567218,20.48670985,102.7,102.65,15.39164731]
[1770115567418,22.91509022,102.7,102.65,15.39164731]
[1770115568419,20.48670985,102.7,102.65,24.16664731]
[1770115568613,31.68439022,102.72,102.66,14.8340272]
[1770115569117,20.48670985,102.71,102.66,14.8340272]
[1770115569718,20.48670985,102.71,102.66,23.6081272]
[1770115569916,20.48670985,102.73,102.67,14.84662848]
[1770115570417,20.48670985,102.71,102.66,15.24179818]
[1770115574125,2.42838037,102.72,102.67,17.11694682]
[1770115574422,22.91509022,102.72,102.67,17.11694682]
[1770115577620,20.48670985,102.72,102.67,17.11694682]
[1770115577826,20.48670985,102.73,102.68,17.51871091]
[1770115580629,22.91509022,102.73,102.68,17.51871091]
[1770115581227,22.91509022,102.73,102.68,27.40290042]
[1770115582230,22.3212157,102.75,102.7,17.87748867]
[1770115583528,22.3212157,102.75,102.7,26.64808867]
[1770115585727,19.89283533,102.75,102.71,8.7699]
[1770115585928,19.89283533,102.75,102.71,27.60185567]
[1770115589531,2.42838037,102.76,102.71,27.60185567]
[1770115590332,19.89283533,102.77,102.72,26.47698901]
[1770115592135,19.89283533,102.77,102.73,8.7682]
[1770115592334,19.89283533,102.81,102.73,27.04145741]
[1770115592535,19.89283533,102.79,102.73,18.27325741]
[1770115593033,19.89283533,102.79,102.75,8.7665]
[1770115597037,19.89283533,102.79,102.76,8.7654]
[1770115598638,19.89283533,102.79,102.72,464.11889691]
[1770115598834,19.89283533,102.77,102.72,136.4065]
[1770115599341,19.89283533,102.77,102.72,20.69682678]
[1770115599843,4.94633533,102.77,102.73,20.69682678]
[1770115600133,3.533e-05,102.77,102.73,20.69682678]
[1770115600638,3.533e-05,102.77,102.74,8.7672]
[1770115602639,8.037e-05,102.76,102.74,8.7672]
[1770115602939,8.037e-05,102.76,102.72,157.10492678]
[1770115603339,1.57e-05,102.77,102.72,157.10492678]
[1770115603541,2.42838037,102.77,102.72,157.10492678]
[1770115603937,8.037e-05,102.77,102.74,8.7666]
[1770115604240,8.037e-05,102.77,102.72,157.10492678]
[1770115604442,2.42442733,102.78,102.73,20.69682678]
[1770115604838,2.42442733,102.78,102.75,8.7664]
[1770115605042,2.42442733,102.78,102.73,20.69682678]
[1770115605434,22.31726266,102.78,102.73,20.69682678]
[1770115606334,22.31726266,102.78,102.75,8.7664]
[1770115606536,22.31726266,102.78,102.73,20.69682678]
[1770115607445,22.31726266,102.78,102.75,8.7664]
[1770115607744,22.31726266,102.78,102.73,20.69682678]
[1770115610245,22.31726266,102.78,102.75,8.7665]
[1770115610546,22.31726266,102.78,102.73,20.69682678]
[1770115610748,22.31726266,102.78,102.74,8.7672]
[1770115611147,2.42442733,102.79,102.74,19.92674958]
[1770115611549,24.0574592,102.79,102.74,28.69394958]
[1770115611745,24.0574592,102.79,102.74,8.7672]
[1770115611940,2.42442733,102.77,102.73,19.92674958]
[1770115613451,2.42442733,102.77,102.71,345.19946881]
[1770115613452,24.33328961,102.77,102.71,345.19946881]
[1770115613753,24.33328961,102.77,102.72,20.71016881]
[1770115614851,24.33328961,102.77,102.72,29.47906881]
[1770115615848,24.33328961,102.77,102.72,20.71016881]
[1770115620452,2.42442733,102.77,102.72,29.47906881]
[1770115620650,24.33328961,102.79,102.73,20.71016881]
[1770115622455,33.09658961,102.79,102.73,20.71016881]
[1770115623454,21.90886228,102.78,102.73,20.71016881]
[1770115623652,2.42442733,102.77,102.73,20.71016881]
[1770115623955,24.33328961,102.77,102.73,20.71016881]
[1770115624954,24.33328961,102.75,102.69,20.71016881]
[1770115626454,33.09988961,102.75,102.69,29.48156881]
[1770115626652,33.09988961,102.75,102.7,20.71016881]
[1770115626847,33.09988961,102.75,102.68,231.04418951]
[1770115626848,24.33328961,102.73,102.68,30.59435832]
[1770115627561,2.42442733,102.71,102.66,283.27016881]
[1770115627759,2.42442733,102.69,102.66,30.35164085]
[1770115628560,2.42442733,102.69,102.66,20.71016881]
[1770115629954,2.42442733,102.71,102.67,20.71016881]
[1770115631761,2.42442733,102.71,102.62,165.7804]
[1770115631762,2.42442733,102.69,102.65,20.71016881]
[1770115631963,2.42442733,102.67,102.65,20.71016881]
[1770115634759,2.42442733,102.68,102.65,20.71016881]
[1770115635260,2.42442733,102.7,102.65,20.71016881]
[1770115635667,2.42442733,102.7,102.66,20.71016881]
[1770115640763,21.90886228,102.72,102.67,31.4136268]
[1770115641062,22.81485226,102.74,102.67,22.6403268]
[1770115641259,2.42442733,102.73,102.67,22.6403268]
[1770115642467,2.42442733,102.73,102.68,31.4121268]
[1770115642666,2.42442733,102.71,102.68,31.4121268]
[1770115645368,2.42442733,102.71,102.68,22.6403268]
[1770115645570,2.42442733,102.71,102.67,8.7732]
[1770115645571,25.23927959,102.71,102.67,8.7732]
[1770115652777,25.23927959,102.71,102.67,31.4135268]
[1770115654876,25.23927959,102.71,102.68,8.7723]
[1770115655081,2.42442733,102.72,102.68,31.4126268]
[1770115655775,22.81485226,102.73,102.69,22.6403268]
[1770115655974,2.733e-05,102.73,102.69,22.6403268]
[1770115656179,2.42442733,102.74,102.69,22.6403268]
[1770115657276,2.42442733,102.74,102.71,8.7697]
[1770115657481,25.23927959,102.74,102.7,22.6403268]
[1770115657678,2.42442733,102.72,102.7,22.6403268]
[1770115657877,2.42442733,102.72,102.68,22.6403268]
[1770115658477,2.42442733,102.72,102.69,8.7715]
[1770115658680,2.42442733,102.72,102.69,31.4118268]
[1770115660882,2.42442733,102.72,102.69,22.6403268]
[1770115662078,2.42442733,102.72,102.69,31.4119268]
[1770115662489,31.58165226,102.75,102.69,31.4119268]
[1770115662490,22.81485226,102.75,102.7,22.6403268]
[1770115662684,2.42442733,102.74,102.7,22.6403268]
[1770115663780,11.19182733,102.74,102.7,22.6403268]
[1770115663981,2.42442733,102.72,102.69,8.7716]
[1770115665484,2.42442733,102.72,102.68,31.4126268]
[1770115666084,2.42442733,102.72,102.69,22.6403268]
[1770115666478,2.42673163,102.73,102.69,22.6403268]
[1770115671092,23.95071773,102.73,102.69,22.6403268]
[1770115671294,2.42673163,102.73,102.69,31.4119268]
[1770115673288,24.84380812,102.73,102.69,8.7716]
[1770115673487,2.42673163,102.71,102.69,8.7716]
[1770115673894,2.42673163,102.72,102.69,31.35025042]
[1770115676198,2.42673163,102.73,102.7,22.57865042]
[1770115679098,2.42673163,102.73,102.7,31.34925042]
[1770115679998,22.41707649,102.75,102.7,31.34925042]
[1770115680198,2.42673163,102.74,102.7,31.34925042]
[1770115680796,24.84380812,102.74,102.7,22.57865042]
[1770115681098,2.42673163,102.72,102.69,8.7714]
[1770115681496,2.42673163,102.72,102.68,8.7724]
[1770115681802,24.84380812,102.72,102.68,8.7724]
[1770115682401,2.42673163,102.7,102.65,9.58004334]
[1770115682597,2.42673163,102.7,102.63,486.9564]
[1770115682906,2.42673163,102.7,102.64,22.57865042]
[1770115683307,2.42673163,102.7,102.65,31.35355042]
[1770115683607,2.42673163,102.7,102.66,22.57865042]
[1770115684908,22.41707649,102.71,102.66,22.57865042]
[1770115684909,2.42673163,102.68,102.66,22.57865042]
[1770115686306,22.41707649,102.71,102.66,22.57865042]
[1770115686513,2.42673163,102.69,102.66,22.57865042]
[1770115686910,2.42673163,102.71,102.66,22.57865042]
[1770115687110,2.42673163,102.71,102.66,31.35275042]
[1770115687306,2.42673163,102.71,102.67,22.57865042]
[1770115687507,2.42673163,102.72,102.67,22.57865042]
[1770115687712,2.42673163,102.72,102.68,22.57865042]
[1770115687919,2.42673163,102.72,102.68,31.35105042]
[1770115688109,2.42673163,102.72,102.69,22.57865042]
[1770115689012,2.42673163,102.7,102.65,32.29806843]
[1770115689510,2.42673163,102.68,102.65,41.07306843]
[1770115689714,2.42673163,102.68,102.65,22.57865042]
[1770115690012,2.42673163,102.68,102.64,353.6]
[1770115690708,2.42673163,102.68,102.64,362.3758]
[1770115691811,2.42673163,102.68,102.64,376.93660043]
[1770115693717,2.42673163,102.68,102.65,8.7749]
[1770115694517,2.42673163,102.69,102.66,23.34125718]
[1770115695317,22.41707649,102.71,102.66,23.34125718]
[1770115695517,2.42673163,102.69,102.66,23.34125718]
[1770115704119,2.42673163,102.7,102.67,8.7732]
[1770115704625,2.42673163,102.71,102.67,16.14585542]
[1770115705020,2.42673163,102.71,102.67,24.91895542]
[1770115706626,8.7684,102.73,102.68,16.47343728]
[1770115706817,2.42673163,102.71,102.68,16.47343728]
[1770115712333,2.42673163,102.71,102.68,25.24563728]
[1770115712528,1.17319512,102.71,102.68,25.24563728]
[1770115713934,1.17319512,102.71,102.69,17.15367384]
[1770115715031,9.512e-05,102.71,102.69,25.92527384]
[1770115715232,2.42673163,102.72,102.69,25.92527384]
[1770115717531,24.82573534,102.73,102.7,8.7707]
[1770115717737,27.25246697,102.73,102.7,8.7707]
[1770115720235,27.25246697,102.73,102.69,17.15367384]
[1770115720539,2.42673163,102.71,102.67,17.49208047]
[1770115721539,2.42673163,102.71,102.68,26.36572358]
[1770115722040,2.42673163,102.71,102.68,17.59382358]
[1770115723434,2.42673163,102.71,102.68,26.36582358]
[1770115726341,27.25322534,102.72,102.68,26.36582358]
[1770115729742,27.25322534,102.72,102.68,17.59382358]
[1770115730444,24.82573534,102.72,102.68,17.59382358]
[1770115730747,27.25322534,102.72,102.68,17.59382358]
[1770115733049,24.31200685,102.73,102.69,19.22074624]
[1770115733249,26.73949685,102.73,102.69,19.22074624]
[1770115734447,2.42749,102.73,102.69,27.99214624]
[1770115736252,2.42749,102.73,102.7,8.7708]
[1770115737149,2.42749,102.73,102.69,19.22074624]
[1770115737451,2.42749,102.71,102.66,505.9277]
[1770115737944,2.42749,102.71,102.68,8.7718]
[1770115739749,2.42749,102.71,102.67,9.35829703]
[1770115740854,2.42749,102.71,102.67,0.58509703]
[1770115742354,2.42749,102.74,102.69,1.00113601]
[1770115742548,28.92531389,102.75,102.69,1.00113601]
[1770115744556,28.92531389,102.75,102.7,10.0736086]
[1770115750057,28.92531389,102.75,102.72,2.233656]
[1770115750058,2.42749,102.75,102.72,2.233656]
[1770115750264,28.73726353,102.75,102.71,8.7698]
[1770115750659,28.73726353,102.75,102.71,11.003456]
[1770115753266,28.73726353,102.75,102.7,8.7708]
[1770115754473,28.91829818,102.73,102.69,8.7715]
[1770115755164,28.91829818,102.73,102.68,8.7723]
[1770115765069,28.91829818,102.73,102.65,378.00805061]
[1770115765372,30.11084572,102.7,102.65,3.16805061]
[1770115766275,30.11084572,102.7,102.65,11.94295061]
[1770115766479,2.42749,102.68,102.63,387.3919591]
[1770115766684,2.42749,102.68,102.64,3.18768843]
[1770115767272,2.42749,102.68,102.64,11.96348843]
[1770115772181,30.11084572,102.68,102.64,11.96348843]
[1770115773378,30.11084572,102.68,102.65,8.775]
[1770115776884,30.11084572,102.68,102.64,3.18768843]
[1770115777085,30.11084572,102.68,102.63,396.69855652]
[1770115777888,2.42749,102.66,102.63,387.01428585]
[1770115780391,2.42749,102.66,102.63,12.49428585]
[1770115782299,27.68335572,102.67,102.64,8.7758]
[1770115783902,409.919,102.72,102.63,3.71838585]
[1770115783903,27.68335572,102.69,102.66,8.7741]
[1770115784201,30.11084572,102.71,102.65,4.08440321]
[1770115784896,30.11084572,102.71,102.67,8.7733]
[1770115786496,30.11084572,102.71,102.68,8.7724]
[1770115788501,30.11125955,102.71,102.68,8.7724]
[1770115788701,12.51895572,102.71,102.68,8.7724]
[1770115791205,2.42790383,102.72,102.68,8.7724]
[1770115791206,31.29418352,102.72,102.68,8.7724]
[1770115793301,31.29418352,102.72,102.69,8.7713]
[1770115795505,29.84012196,102.74,102.69,21.47097449]
[1770115797006,2.42790383,102.74,102.69,21.47097449]
[1770115797211,2.42790383,102.77,102.71,26.82643756]
[1770115797613,2.42790383,102.77,102.74,8.7673]
[1770115799112,29.84012196,102.77,102.74,8.7673]
[1770115800417,62.0,102.81,102.75,8.7663]
[1770115800418,2.42790383,102.79,102.75,8.7663]
[1770115801010,2.42790383,102.79,102.76,8.7656]
[1770115801416,2.42790383,102.81,102.76,26.82643756]
[1770115801609,2.42790383,102.81,102.76,163.18143756]
[1770115802116,390.78790383,102.83,102.79,8.763]
[1770115802310,29.84012196,102.83,102.79,8.763]
[1770115803320,29.84012196,102.83,102.77,26.82643756]
[1770115805419,29.84012196,102.83,102.77,35.59113756]
[1770115809417,29.84012196,102.83,102.78,35.59033756]
[1770115810218,29.84012196,102.81,102.74,26.82643756]
[1770115810423,2.42790383,102.79,102.74,26.82643756]
[1770115810617,2.42790383,102.81,102.75,26.82643756]
[1770115811317,29.84012196,102.81,102.75,26.82643756]
[1770115811821,29.84012196,102.81,102.76,35.59133756]
[1770115812222,2.42790383,102.81,102.76,26.82643756]
[1770115812619,2.42790383,102.81,102.77,35.59053756]
[1770115813726,2.42790383,102.81,102.78,8.7638]
[1770115815829,2.42790383,102.81,102.77,35.59113756]
[1770115816324,29.84012196,102.81,102.75,26.82643756]
[1770115816523,2.42790383,102.79,102.75,26.82643756]
[1770115817122,27.41221813,102.8,102.76,8.7656]
[1770115819731,2.42790383,102.81,102.77,26.82643756]
[1770115823530,2.42790383,102.81,102.77,35.59073756]
[1770115824128,27.41221813,102.82,102.78,8.7639]
[1770115828634,8.7591,102.84,102.79,25.87518001]
[1770115828635,27.65368604,102.84,102.79,25.87518001]
[1770115828836,2.42790383,102.84,102.79,25.87518001]
[1770115829740,33.98398221,102.85,102.8,34.63678001]
[1770115830033,27.65368604,102.85,102.8,25.87518001]
[1770115830239,2.42790383,102.83,102.78,25.87518001]
[1770115831243,27.65368604,102.83,102.78,25.87518001]
[1770115832540,27.65368604,102.83,102.78,34.63898001]
[1770115839146,27.65368604,102.83,102.79,8.7629]
[1770115839553,25.22578221,102.83,102.79,34.63808001]
[1770115841252,2.42790383,102.84,102.79,34.63808001]
[1770115842452,27.65368604,102.84,102.79,34.63808001]
[1770115842651,25.22578221,102.83,102.79,34.63808001]
[1770115846858,27.65368604,102.82,102.78,8.7637]
[1770115847857,27.65368604,102.82,102.77,25.87518001]
[1770115848352,27.64868507,102.82,102.77,25.87518001]
[1770115849560,27.64868507,102.8,102.75,25.87518001]
[1770115851057,23.68627392,102.78,102.73,31.70299939]
[1770115851258,2.42290286,102.76,102.71,22.93489939]
[1770115851561,23.68627392,102.74,102.69,31.70639939]
[1770115851763,23.68627392,102.74,102.69,22.93489939]
[1770115859566,23.68627392,102.74,102.65,138.91560286]
[1770115859567,2.42290286,102.72,102.67,29.39938638]
[1770115860069,23.43684116,102.72,102.67,29.39938638]
[1770115860568,2.42290286,102.72,102.68,20.62608638]
[1770115861367,23.43684116,102.72,102.67,8.7733]
[1770115861666,8.7674,102.74,102.59,29.25]
[1770115861667,23.43684116,102.7,102.64,20.62608638]
[1770115862365,23.43684116,102.7,102.65,29.40108638]
[1770115864769,2.42290286,102.68,102.65,20.62608638]
[1770115864964,2.42290286,102.68,102.64,8.7759]
[1770115865272,23.43684116,102.68,102.63,20.62608638]
[1770115865764,23.43684116,102.68,102.63,29.40278638]
[1770115865966,2.42290286,102.66,102.62,30.1910747]
[1770115868268,2.42290286,102.66,102.62,38.9685747]
[1770115870369,29.7848383,102.7,102.64,20.62608638]
[1770115870667,2.42290286,102.68,102.64,20.62608638]
[1770115872073,23.43684116,102.68,102.62,20.62608638]
[1770115872265,2.42290286,102.66,102.62,20.62608638]
[1770115877078,2.42290286,102.64,102.6,29.40518638]
[1770115877468,23.43684116,102.64,102.58,20.62608638]
[1770115877673,2.42290286,102.62,102.58,20.62608638]
[1770115879472,2.42290286,102.62,102.58,29.40648638]
[1770115880275,19.39313681,102.67,102.6,18.59061217]
[1770115880472,2.42290286,102.65,102.6,18.59061217]
[1770115881274,2.42290286,102.65,102.61,8.7784]
[1770115882279,2.42290286,102.66,102.62,27.36781217]
[1770115882582,2.42290286,102.68,102.63,18.59061217]
[1770115883382,2.42290286,102.68,102.64,8.7758]
[1770115883980,19.39313681,102.72,102.65,18.59061217]
[1770115884281,21.81603967,102.72,102.66,18.59061217]
[1770115885383,136.3406,102.78,102.68,18.59061217]
[1770115885384,21.81603967,102.74,102.68,18.59061217]
[1770115886275,21.81603967,102.74,102.69,8.7715]
[1770115886784,21.81603967,102.74,102.68,18.59061217]
[1770115888385,21.81603967,102.74,102.68,27.36231217]
[1770115888780,21.81603967,102.7,102.64,18.59061217]
[1770115889486,2.42290286,102.68,102.64,18.59061217]
[1770115891085,28.16413681,102.7,102.64,18.59061217]
[1770115891280,2.42290286,102.68,102.64,18.59061217]
[1770115892087,2.42290286,102.68,102.64,27.36651217]
[1770115892387,2.42290286,102.7,102.65,18.59061217]
[1770115893284,2.42290286,102.7,102.65,27.36551217]
[1770115894992,2.42290286,102.7,102.66,18.59061217]
[1770115897893,2.42290286,102.7,102.66,27.36461217]
[1770115899494,2.42290286,102.71,102.66,27.36461217]
[1770115900897,2.42290286,102.71,102.67,8.7731]
[1770115902094,2.42290286,102.71,102.67,27.36371217]
[1770115902290,2.42290286,102.71,102.68,8.7724]
[1770115902489,2.42290286,102.73,102.68,27.36301217]
[1770115902688,2.42290286,102.73,102.68,18.59061217]
[1770115904198,2.42290286,102.73,102.69,8.7715]
[1770115904399,2.42290286,102.73,102.68,18.59061217]
[1770115905400,2.42290286,102.73,102.68,27.36311217]
[1770115906801,2.42290286,102.73,102.69,18.59061217]
[1770115907199,2.42290286,102.73,102.69,27.36221217]
[1770115907501,524.7913,102.77,102.7,18.59061217]
[1770115907502,2.42290286,102.75,102.7,18.59061217]
[1770115908403,2.42622102,102.75,102.7,27.36141217]
[1770115908706,2.42622102,102.75,102.71,18.59061217]
[1770115910006,21.81935783,102.75,102.69,18.59061217]
[1770115910505,2.42622102,102.71,102.67,17.78797132]